fUSD/lending_fUSD_20251126
["ID","MTS","AMOUNT","RATE_DAILY","PERIOD"]
[394919411,1764119154326,-632.9066711,0.0005,120]
[394919412,1764119154372,-152.83925483,0.0005,30]
[394919413,1764119154400,-691.71202195,0.0005,30]
[394919414,1764119154427,-157.21885041,0.0005,30]
[394919415,1764119154464,-1249.16,0.0005,120]
[394919416,1764119154496,-476.479175,0.0005,120]
[394919417,1764119154525,-236.8407782,0.0005,120]
[394919418,1764119154558,-1300.0,0.0005,120]
[394919419,1764119154588,-204633.43413601,0.0005,30]
[394919420,1764119154617,-10000.0,0.0005,120]
[394919421,1764119154645,-500000.0,0.0005,120]
[394919422,1764119154672,-500000.0,0.0005,120]
[394919423,1764119154700,-500000.0,0.0005,120]
[394919424,1764119154729,-500000.0,0.0005,120]
[394919425,1764119154756,-500000.0,0.0005,120]
[394919426,1764119154783,-500000.0,0.0005,120]
[394919427,1764119154809,-500000.0,0.0005,120]
[394919428,1764119154837,-5342.0,0.0005,120]
[394919429,1764119154866,-150.0,0.0005,120]
[394919430,1764119154893,-10468.04667932,0.0005,120]
[394919431,1764119154920,-500.0,0.0005,60]
[394919432,1764119154949,-500.0,0.0005,60]
[394919433,1764119154976,-323127.0,0.0005,120]
[394919434,1764119155004,-562.6854687,0.0005,120]
[394919435,1764119155032,-175.7949597,0.0005,90]
[394919436,1764119155059,-245.46,0.0005,30]
[394919437,1764119155088,-725119.18911879,0.0005,30]
[394919438,1764119161272,200.0,0.0004194,30]
[394919439,1764119168086,-195.0,0.000429,120]
[394919440,1764119168119,-915.05,0.00044251,120]
[394919441,1764119168153,-915.05,0.00044525,120]
[394919442,1764119168182,-915.05,0.00044799,120]
[394919443,1764119168212,-915.05,0.00045073,120]
[394919444,1764119168242,-915.05,0.00045347,120]
[394919445,1764119168270,-915.05,0.00045621,120]
[394919446,1764119168298,-915.05,0.00045895,120]
[394919447,1764119168327,-915.05,0.00046169,120]
[394919448,1764119168355,-915.05,0.00046443,120]
[394919449,1764119168384,-915.05,0.00046717,120]
[394919450,1764119168415,-915.21,0.00046991,120]
[394919451,1764119168446,-1062.2994186,0.0004975,120]
[394919452,1764119168473,-202.41758436,0.0004975,120]
[394919453,1764119168505,-1799920.96191658,0.0005,30]
[394919454,1764119168534,-777.0,0.0005,120]
[394919455,1764119168562,-368.13661169,0.000502,120]
[394919456,1764119168589,-500000.0,0.0005025,120]
[394919457,1764119168625,-176.0,0.000504,120]
[394919458,1764119168654,-607.70040062,0.00050425,120]
[394919459,1764119168682,-152.0,0.000505,120]
[394919460,1764119168711,-959.77103496,0.000505,120]
[394919461,1764119168740,-500000.0,0.000505,120]
[394919462,1764119168768,-500000.0,0.0005075,120]
[394919463,1764119168797,-181.86458008,0.000508,120]
[394919464,1764119168826,-176.0,0.000509,120]
[394919465,1764119168856,-1000.0,0.00050999,120]
[394919466,1764119168884,-922.0,0.00051,120]
[394919467,1764119168913,-10416.0,0.00051,120]
[394919468,1764119168945,-152.0,0.00051,120]
[394919469,1764119168973,-2000.0,0.00051,120]
[394919470,1764119169001,-5000.0,0.00051,120]
[394919471,1764119169030,-10000.0,0.00051,120]
[394919472,1764119169059,-500000.0,0.00051,120]
[394919473,1764119169087,-150.0,0.00051,120]
[394919474,1764119169120,-1384.86157429,0.00051,120]
[394919475,1764119169149,-153.46,0.00051187,120]
[394919476,1764119169176,-500000.0,0.0005125,120]
[394919477,1764119169205,-176.0,0.000514,120]
[394919478,1764119169234,-200.0,0.00051457,120]
[394919479,1764119169263,-280.74750748,0.000515,120]
[394919480,1764119169290,-500000.0,0.000515,120]
[394919481,1764119169317,-600.0,0.0005155,120]
[394919482,1764119169345,-152.0,0.000516,120]
[394919483,1764119169382,-990.51910673,0.00051698,120]
[394919484,1764119169410,-294.61959453,0.00051708,120]
[394919485,1764119169439,-151282.93067008,0.0005175,120]
[394919486,1764119172946,-682.36,0.0004975,120]
[394919487,1764119172979,-665.71,0.0004975,120]
[394919488,1764119173014,-348717.06932992,0.0005175,120]
[394919489,1764119173045,-500.0,0.00051755,30]
[394919490,1764119173076,-500.0,0.00051755,30]
[394919491,1764119173107,-500.0,0.00051755,30]
[394919492,1764119173136,-343.0,0.00051755,30]
[394919493,1764119173164,-824.0,0.00051755,30]
[394919494,1764119173190,-824.0,0.00051755,30]
[394919495,1764119173217,-824.0,0.00051755,30]
[394919496,1764119173246,-824.0,0.00051755,30]
[394919497,1764119173276,-824.0,0.00051755,30]
[394919498,1764119173304,-824.0,0.00051755,30]
[394919499,1764119173505,-824.0,0.00051755,30]
[394919500,1764119173535,-824.0,0.00051755,30]
[394919501,1764119173563,-824.0,0.00051755,30]
[394919502,1764119173590,-824.0,0.00051755,30]
[394919503,1764119173618,-824.0,0.00051755,30]
[394919504,1764119173657,-824.0,0.00051755,30]
[394919505,1764119173691,-824.0,0.00051755,30]
[394919506,1764119173720,-824.0,0.00051755,30]
[394919507,1764119173749,-824.0,0.00051755,30]
[394919508,1764119173780,-824.0,0.00051755,30]
[394919509,1764119173811,-824.0,0.00051755,30]
[394919510,1764119173840,-824.0,0.00051755,30]
[394919511,1764119173870,-824.0,0.00051755,30]
[394919512,1764119173900,-824.0,0.00051755,30]
[394919513,1764119173931,-824.0,0.00051755,30]
[394919514,1764119173964,-824.0,0.00051755,30]
[394919515,1764119173995,-824.0,0.00051755,30]
[394919516,1764119174025,-825.98796627,0.00051755,30]
[394919517,1764119174057,-79999.999999,0.00051777,50]
[394919518,1764119174088,-176.0,0.000519,120]
[394919519,1764119174122,-452.24,0.000519,30]
[394919520,1764119174152,-1192.43,0.0005199,120]
[394919521,1764119174181,-1000.0,0.00051999,120]
[394919522,1764119174210,-1000.0,0.00052,120]
[394919523,1764119174240,-620.28096468,0.00052,120]
[394919524,1764119174271,-1000.0,0.00052,120]
[394919525,1764119174302,-300.0,0.00052,120]
[394919526,1764119174331,-1227.16417694,0.00052,120]
[394919527,1764119174360,-500.0,0.00052,30]
[394919528,1764119174388,-304123.22704971,0.00052,120]
[394919529,1764119174416,-10000.0,0.00052,120]
[394919530,1764119174445,-500000.0,0.00052,120]
[394919531,1764119174475,-2816.96531222,0.00052,120]
[394919532,1764119174505,-250.0,0.00052,120]
[394919533,1764119174535,-691.92588879,0.00052,120]
[394919534,1764119174563,-1360.04696106,0.00052,120]
[394919535,1764119174597,-999.0,0.00052027,120]
[394919536,1764119174626,-458.55727399,0.00052027,120]
[394919537,1764119176197,283.00785,0.00052027,59]
[394919538,1764119176234,283.00786,0.00052027,59]
[394919539,1764119176295,283.00786,0.00052027,59]
[394919540,1764119176367,283.00786,0.00052027,59]
[394919541,1764119176401,283.00786,0.00052027,59]
[394919542,1764119176617,283.00786,0.00052027,59]
[394919543,1764119191222,-152.0,0.000521,120]
[394919544,1764119191252,-50000.0,0.0005224,120]
[394919545,1764119191280,-500000.0,0.0005225,120]
[394919546,1764119191308,-227.53424774,0.000523,120]
[394919547,1764119191337,-176.0,0.000524,120]
[394919548,1764119191368,-505628.92155112,0.000524,75]
[394919549,1764119191397,-177926.0,0.000524,75]
[394919550,1764119191432,-2514.0,0.0005246,68]
[394919551,1764119191461,-500000.0,0.000525,120]
[394919552,1764119191490,-152.0,0.000527,120]
[394919553,1764119191519,-500000.0,0.0005275,120]
[394919554,1764119191548,-176.0,0.000529,120]
[394919555,1764119191577,-109435.57502835,0.00052913,120]
[394919556,1764119191607,-1000.0,0.00052999,120]
[394919557,1764119191637,-564.11812105,0.00053,120]
[394919558,1764119191666,-3248.84103234,0.00053,120]
[394919559,1764119191694,-740.0,0.00053,120]
[394919560,1764119191721,-10000.0,0.00053,120]
[394919561,1764119191749,-500000.0,0.00053,120]
[394919562,1764119191776,-150.0,0.00053,120]
[394919563,1764119191803,-152.0,0.000532,120]
[394919564,1764119191833,-500000.0,0.0005325,120]
[394919565,1764119191860,-1659.36144253,0.0005333,120]
[394919566,1764119191890,-176.0,0.000534,120]
[394919567,1764119191918,-303.37877487,0.000534,120]
[394919568,1764119191951,-500000.0,0.000535,120]
[394919569,1764119191982,-2000.0,0.0005362,71]
[394919570,1764119192010,-133618.269802,0.0005369,120]
[394919571,1764119195351,-899650.720198,0.0005369,120]
[394919572,1764119195379,-152.0,0.000537,120]
[394919573,1764119195407,-500000.0,0.0005375,120]
[394919574,1764119195436,-1463.38992393,0.00053898,82]
[394919575,1764119195464,-176.0,0.000539,120]
[394919576,1764119195492,-2546.89641835,0.000539,120]
[394919577,1764119195521,-161.12260244,0.00053949,120]
[394919578,1764119195550,-157.98006776,0.00053951,120]
[394919579,1764119195578,-576.71931202,0.00053957,120]
[394919580,1764119195607,-188.84049609,0.00053957,120]
[394919581,1764119195635,-6310.43234983,0.00053967,120]
[394919582,1764119195662,-540.09449909,0.00053969,120]
[394919583,1764119195690,-210.0122202,0.00053972,120]
[394919584,1764119195718,-16400.0,0.0005398,120]
[394919585,1764119195745,-16400.0,0.0005398,120]
[394919586,1764119195772,-16400.0,0.0005398,120]
[394919587,1764119195799,-16400.0,0.0005398,120]
[394919588,1764119195944,-16400.0,0.0005398,120]
[394919589,1764119196004,-16400.0,0.0005398,120]
[394919590,1764119196038,-3276.3125,0.0005398,120]
[394919591,1764119196072,-1065.02213842,0.00053985,120]
[394919592,1764119196103,-455.0,0.00053986,120]
[394919593,1764119196132,-192.0643494,0.00053989,120]
[394919594,1764119196163,-3415.09638025,0.00053996,120]
[394919595,1764119196193,-1000.0,0.00053999,120]
[394919596,1764119196222,-667.77236079,0.00054,120]
[394919597,1764119196257,-3142.52250091,0.00054,120]
[394919598,1764119196292,-534.85441374,0.00054,120]
[394919599,1764119196322,-1000.0,0.00054,120]
[394919600,1764119196352,-5000.0,0.00054,120]
[394919601,1764119196380,-5331.0,0.00054,120]
[394919602,1764119196410,-300.0,0.00054,120]
[394919603,1764119196439,-1010.36471,0.00054,120]
[394919604,1764119196469,-10000.0,0.00054,120]
[394919605,1764119196499,-500000.0,0.00054,120]
[394919606,1764119196528,-8500.0,0.00054,120]
[394919607,1764119196556,-7086.15695398,0.00054,120]
[394919608,1764119196585,-1527.0,0.00054,99]
[394919609,1764119196613,-1731.07696786,0.00054,120]
[394919610,1764119196643,-1000.0,0.00054118,120]
[394919611,1764119196672,-1000.0,0.00054118,120]
[394919612,1764119196701,-1000.0,0.00054118,120]
[394919613,1764119196729,-1000.0,0.00054123,120]
[394919614,1764119196757,-1000.0,0.00054123,120]
[394919615,1764119196785,-1000.0,0.00054123,120]
[394919616,1764119196814,-1000.0,0.00054129,120]
[394919617,1764119196842,-1000.0,0.00054129,120]
[394919618,1764119196873,-1000.0,0.00054129,120]
[394919619,1764119196903,-1000.0,0.00054134,120]
[394919620,1764119196931,-1000.0,0.00054134,120]
[394919621,1764119196962,-1000.0,0.00054134,120]
[394919622,1764119196991,-1000.0,0.0005414,120]
[394919623,1764119197021,-1000.0,0.0005414,120]
[394919624,1764119197051,-1000.0,0.0005414,120]
[394919625,1764119197082,-1000.0,0.00054145,120]
[394919626,1764119197111,-1000.0,0.00054145,120]
[394919627,1764119197140,-1000.0,0.00054145,120]
[394919628,1764119197168,-1000.0,0.00054151,120]
[394919629,1764119197197,-1000.0,0.00054151,120]
[394919630,1764119197227,-1000.0,0.00054151,120]
[394919631,1764119197256,-1000.0,0.00054156,120]
[394919632,1764119197285,-1000.0,0.00054156,120]
[394919633,1764119197314,-1000.0,0.00054156,120]
[394919634,1764119197342,-1000.0,0.00054161,120]
[394919635,1764119197372,-1000.0,0.00054161,120]
[394919636,1764119197403,-1000.0,0.00054161,120]
[394919637,1764119197431,-1000.0,0.00054167,120]
[394919638,1764119197461,-1000.0,0.00054167,120]
[394919639,1764119197491,-1000.0,0.00054167,120]
[394919640,1764119197520,-500000.0,0.0005425,120]
[394919641,1764119197550,-152.0,0.000543,120]
[394919642,1764119197579,-176.0,0.000543,120]
[394919643,1764119197608,-1000.0,0.00054374,120]
[394919644,1764119197639,-500000.0,0.000545,120]
[394919645,1764119197674,-500000.0,0.0005475,120]
[394919646,1764119197705,-1000.0,0.00054794,120]
[394919647,1764119197735,-1000.0,0.00054794,120]
[394919648,1764119197763,-1000.0,0.00054794,120]
[394919649,1764119197791,-742.50178441,0.00054794,120]
[394919650,1764119197820,-1040.02,0.00054794,120]
[394919651,1764119197849,-1040.02,0.00054794,120]
[394919652,1764119197879,-1040.02,0.00054794,120]
[394919653,1764119197908,-1040.02,0.00054794,120]
[394919654,1764119197937,-1040.02,0.00054794,120]
[394919655,1764119197966,-1040.02,0.00054794,120]
[394919656,1764119197994,-1040.02,0.00054794,120]
[394919657,1764119198023,-1040.02,0.00054794,120]
[394919658,1764119198053,-1040.02,0.00054794,120]
[394919659,1764119198081,-1040.02,0.00054794,120]
[394919660,1764119198112,-1040.02,0.00054794,120]
[394919661,1764119198144,-500.0,0.00054794,120]
[394919662,1764119198173,-13181.81435515,0.000548,120]
[394919663,1764119198201,-152.0,0.000548,120]
[394919664,1764119198228,-176.0,0.000548,120]
[394919665,1764119198256,-159.10448939,0.000549,120]
[394919666,1764119198283,-5125.4608278,0.0005495,120]
[394919667,1764119198309,-261.74331337,0.00054989,120]
[394919668,1764119198336,-1000.0,0.00054999,120]
[394919669,1764119198363,-1280.97189552,0.00055,120]
[394919670,1764119198390,-214.81277779,0.00055,120]
[394919671,1764119198416,-160.37595658,0.00055,120]
[394919672,1764119198442,-150.0,0.00055,80]
[394919673,1764119198470,-1000.0,0.00055,60]
[394919674,1764119198497,-385.0,0.00055,120]
[394919675,1764119198525,-1000.0,0.00055,120]
[394919676,1764119198554,-290000.0,0.00055,120]
[394919677,1764119198582,-500.0,0.00055,60]
[394919678,1764119198610,-1066.67992512,0.00055,120]
[394919679,1764119198638,-150.0,0.00055,90]
[394919680,1764119198667,-942.09678918,0.00055,120]
[394919681,1764119198696,-229.89880701,0.00055,120]
[394919682,1764119198726,-351.18705921,0.00055,120]
[394919683,1764119198760,-300.0,0.00055,60]
[394919684,1764119198790,-200.0,0.00055,120]
[394919685,1764119198820,-69233.68065641,0.00055,120]
[394919686,1764119203306,-673.22,0.0005215,120]
[394919687,1764119203453,-685.51,0.0005215,120]
[394919688,1764119203485,-430766.31934359,0.00055,120]
[394919689,1764119203515,-284.02,0.00055,120]
[394919690,1764119203543,-274.605209,0.00055,100]
[394919691,1764119203573,-1040.02,0.00055068,120]
[394919692,1764119203602,-500.0,0.00055068,120]
[394919693,1764119203631,-500000.0,0.0005525,120]
[394919694,1764119203659,-4128.11517345,0.00055296,120]
[394919695,1764119203687,-176.0,0.000553,120]
[394919696,1764119203715,-1040.02,0.00055342,120]
[394919697,1764119203743,-500.0,0.00055342,120]
[394919698,1764119203773,-152.0,0.000554,120]
[394919699,1764119203804,-500000.0,0.000555,120]
[394919700,1764119203835,-1040.02,0.00055616,120]
[394919701,1764119203866,-500.0,0.00055616,120]
[394919702,1764119203894,-500000.0,0.0005575,120]
[394919703,1764119203923,-176.0,0.000558,120]
[394919704,1764119203955,-352.4875127,0.00055884,120]
[394919705,1764119203985,-1040.02,0.0005589,120]
[394919706,1764119204015,-221.95276915,0.0005589,120]
[394919707,1764119204042,-152.0,0.000559,120]
[394919708,1764119204072,-1000.0,0.00055999,120]
[394919709,1764119204102,-150.0,0.00056,80]
[394919710,1764119204133,-300.0,0.00056,120]
[394919711,1764119204161,-800.0,0.00056,120]
[394919712,1764119204191,-644.0,0.00056,120]
[394919713,1764119204219,-500000.0,0.00056,120]
[394919714,1764119204251,-233.0,0.00056,120]
[394919715,1764119204278,-1731.07696787,0.00056,120]
[394919716,1764119204307,-1040.02,0.00056164,120]
[394919717,1764119204340,-500000.0,0.0005625,120]
[394919718,1764119204370,-176.0,0.000563,120]
[394919719,1764119204401,-152.0,0.000564,120]
[394919720,1764119204430,-1040.02,0.00056438,120]
[394919721,1764119204458,-500000.0,0.0005655,120]
[394919722,1764119204487,-13116.0,0.000566,120]
[394919723,1764119204516,-542.0,0.000566,120]
[394919724,1764119204545,-1040.02,0.00056712,120]
[394919725,1764119204574,-500000.0,0.0005675,120]
[394919726,1764119204602,-681.93576401,0.000568,120]
[394919727,1764119204631,-176.0,0.000568,120]
[394919728,1764119204658,-1500.0,0.0005683,91]
[394919729,1764119204685,-2000.0,0.0005685,65]
[394919730,1764119204712,-2018.0,0.0005687,61]
[394919731,1764119204744,-1040.02,0.00056986,120]
[394919732,1764119204772,-1000.0,0.00056999,120]
[394919733,1764119204799,-150.0,0.00057,80]
[394919734,1764119204826,-152.0,0.00057,120]
[394919735,1764119204854,-25615.59726023,0.00057,120]
[394919736,1764119242269,200.0,0.0004194,30]
[394919737,1764119242705,300.0,0.0004194,30]
[394919739,1764119431352,-388.1218776,0.00039,20]
[394919740,1764119431362,-427.01065334,0.00039215,2]
[394919741,1764119431372,-3060.91546571,0.00039831,2]
[394919742,1764119431382,-200.0,0.00040533,2]
[394919743,1764119431391,-312.5701946,0.00040579,2]
[394919744,1764119431401,-200.0,0.0004058,2]
[394919745,1764119431411,-1513.07644777,0.00040589,2]
[394919746,1764119431565,-1626.67393895,0.00040589,2]
[394919778,1764119437439,-2811.65479253,0.00040589,2]
[394919780,1764119437451,-292.696336,0.00040589,2]
[394919783,1764119437462,-299773.93338475,0.00040589,2]
[394919785,1764119437471,-830.0,0.00040679,5]
[394919786,1764119437481,-500.0,0.00040689,8]
[394919787,1764119437492,-500.0,0.00040689,8]
[394919788,1764119437502,-500.0,0.00040689,8]
[394919789,1764119437511,-546.62,0.00040689,8]
[394919790,1764119437520,-500.0,0.00040689,2]
[394919791,1764119437530,-500.0,0.00040689,2]
[394919792,1764119437539,-500.0,0.00040689,2]
[394919793,1764119437549,-1640.53,0.00040689,8]
[394919794,1764119437559,-500.0,0.00040689,8]
[394919795,1764119437568,-500.0,0.00040689,8]
[394919796,1764119437577,-500.0,0.00040689,8]
[394919797,1764119437586,-500.0,0.00040689,8]
[394919798,1764119437596,-500.0,0.00040689,8]
[394919799,1764119437609,-500.0,0.00040689,8]
[394919800,1764119437618,-500.0,0.00040689,8]
[394919801,1764119437628,-211.11734375,0.0004079,3]
[394919802,1764119437637,-500.0,0.00040899,8]
[394919803,1764119437652,-500.0,0.00040899,8]
[394919804,1764119437662,-154.99,0.00040927,2]
[394919805,1764119437671,-500.0,0.00040963,8]
[394919806,1764119437681,-500.0,0.00040963,8]
[394919807,1764119437690,-500.0,0.00040963,8]
[394919808,1764119437700,-546.62,0.00040963,8]
[394919809,1764119437710,-500.0,0.00040963,2]
[394919811,1764119437720,-500.0,0.00040963,2]
[394919813,1764119437729,-1640.53,0.00040963,8]
[394919814,1764119437738,-500.0,0.00040963,8]
[394919815,1764119437748,-500.0,0.00040963,8]
[394919816,1764119437758,-500.0,0.00040963,8]
[394919818,1764119437767,-500.0,0.00040963,8]
[394919820,1764119437777,-500.0,0.00040963,8]
[394919822,1764119437786,-500.0,0.00040963,8]
[394919824,1764119437795,-500.0,0.00040963,8]
[394919826,1764119437804,-1000.0,0.000411,2]
[394919828,1764119437813,-500.0,0.00041173,8]
[394919830,1764119437822,-500.0,0.00041173,8]
[394919832,1764119437832,-500.0,0.00041237,8]
[394919834,1764119437840,-500.0,0.00041237,8]
[394919836,1764119437851,-500.0,0.00041237,8]
[394919838,1764119437860,-546.62,0.00041237,8]
[394919840,1764119437869,-500.0,0.00041237,2]
[394919842,1764119437879,-500.0,0.00041237,2]
[394919844,1764119437888,-1640.53,0.00041237,8]
[394919846,1764119437897,-500.0,0.00041237,8]
[394919848,1764119437906,-500.0,0.00041237,8]
[394919850,1764119437915,-500.0,0.00041237,8]
[394919852,1764119437924,-500.0,0.00041237,8]
[394919853,1764119437935,-500.0,0.00041237,8]
[394919854,1764119437944,-500.0,0.00041237,8]
[394919855,1764119437953,-500.0,0.00041237,8]
[394919856,1764119437963,-500.0,0.00041447,8]
[394919857,1764119437974,-500.0,0.00041447,8]
[394919858,1764119437983,-500.0,0.00041511,8]
[394919859,1764119437996,-500.0,0.00041511,8]
[394919860,1764119438007,-500.0,0.00041511,8]
[394919861,1764119438023,-546.62,0.00041511,8]
[394919862,1764119438033,-500.0,0.00041511,2]
[394919863,1764119438043,-500.0,0.00041511,2]
[394919864,1764119438052,-1640.53,0.00041511,8]
[394919865,1764119438062,-500.0,0.00041511,8]
[394919866,1764119438071,-500.0,0.00041511,8]
[394919867,1764119438080,-500.0,0.00041511,8]
[394919868,1764119438091,-500.0,0.00041511,8]
[394919869,1764119438100,-500.0,0.00041511,8]
[394919870,1764119438110,-500.0,0.00041511,8]
[394919871,1764119438119,-500.0,0.00041511,8]
[394919872,1764119438129,-500.0,0.00041721,8]
[394919873,1764119438139,-180.10201708,0.00041721,8]
[394919874,1764119438148,-151.85612489,0.00041785,8]
[394919875,1764119438158,-500.0,0.00041785,8]
[394919876,1764119438168,-500.0,0.00041785,8]
[394919877,1764119438177,-546.62,0.00041785,8]
[394919878,1764119438187,-500.0,0.00041785,2]
[394919879,1764119438198,-500.0,0.00041785,2]
[394919880,1764119438208,-1640.53,0.00041785,8]
[394919881,1764119438217,-500.0,0.00041785,8]
[394919882,1764119438227,-500.0,0.00041785,8]
[394919883,1764119438238,-577.14936061,0.00041785,8]
[394919884,1764119438248,-500.0,0.00041785,8]
[394919885,1764119438258,-500.0,0.00041785,8]
[394919886,1764119438268,-500.0,0.00041785,8]
[394919887,1764119438278,-500.0,0.00041785,8]
[394919888,1764119438288,-1200.0,0.00041858,7]
[394919889,1764119438298,-567.0,0.000419,22]
[394919890,1764119438308,-763.5516102,0.00041934,2]
[394919891,1764119438318,-3858.3436675,0.00041934,2]
[394919892,1764119438359,-288.38966605,0.00041934,2]
[394919893,1764119438370,-1769.23766179,0.00041934,2]
[394919894,1764119438385,-1850.9311271,0.00041934,2]
[394919895,1764119438396,-780.00000001,0.00041934,2]
[394919896,1764119439616,-11370.55119715,0.00041934,2]
[394919897,1764119439626,-200.0,0.0004194,7]
[394919898,1764119439636,-1200.0,0.0004194,30]
[394919899,1764119439646,-428.0,0.0004194,7]
[394919900,1764119439655,-1945.56764448,0.0004194,21]
[394919901,1764119439665,-8892.49258517,0.0004194,7]
[394919902,1764119439676,-2180.09692438,0.0004194,7]
[394919903,1764119439886,-131672.2379606,0.0004194,7]
[394919911,1764119443167,-31377.0,0.0004194,7]
[394919912,1764119443224,-779.45516085,0.0004194,7]
[394919913,1764119443237,-7894.39866846,0.0004194,7]
[394919914,1764119443279,-500.0,0.0004194,7]
[394919915,1764119443292,-789.44390463,0.0004194,7]
[394919916,1764119444085,-724.55594643,0.0004194,7]
[394919918,1764119445474,-760000.0,0.00040589,2]
[394919919,1764119445484,-806723.37911194,0.0004194,7]
[394919920,1764119445638,-1272.03161504,0.0004194,7]
[394919921,1764119445748,-630.48934459,0.0004194,7]
[394919922,1764119445759,-1105.34411958,0.0004194,7]
[394919923,1764119461730,200.0,0.0004194,30]
[394919924,1764119542522,200.0,0.0004194,30]
[394919925,1764119542918,300.0,0.0004194,30]
[394919926,1764119761724,200.0,0.00042002,30]
[394919927,1764119843012,200.0,0.00042002,30]
[394919928,1764119843497,300.0,0.00042002,30]
[394919929,1764119889331,1281.7075985,0.00042002,30]
[394919930,1764120061451,200.0,0.00042002,30]
[394919931,1764120072999,228.0,0.00042002,30]
[394919932,1764120144483,200.0,0.00042002,30]
[394919933,1764120144791,300.0,0.00042002,30]
[394919935,1764120356760,338.4,0.00013699,2]
[394919936,1764120360819,200.0,0.00042002,30]
[394919937,1764120366920,195.0,0.00022206,120]
[394919938,1764120369087,300.0,0.00022206,120]
[394919939,1764120369365,296.34378942,0.00023432,120]
[394919940,1764120414788,894.35783441,0.000162,5]
[394919941,1764120515086,478.67284404,0.00042002,30]
[394920217,1764120605879,201.07289,0.00042002,60]
[394920218,1764120618330,208.0,0.00042002,30]
[394920219,1764120631612,-533.56929914,0.000162,5]
[394920229,1764120631722,-404.53844161,0.000162,5]
[394920230,1764120631733,-999.0,0.000162,5]
[394920231,1764120631745,-518.04655203,0.000162,5]
[394920232,1764120631834,-1650.49737316,0.000162,5]
[394920233,1764120631843,-1088.0,0.00016999,2]
[394920234,1764120631853,-300.0,0.00016999,2]
[394920235,1764120631863,-5183.7138251,0.00017,2]
[394920236,1764120631874,-1339.14935823,0.00017,2]
[394920237,1764120631886,-50424.07796096,0.00017,2]
[394920238,1764120631896,-338.4,0.00020187,2]
[394920239,1764120631906,-250.0,0.00021406,2]
[394920240,1764120631915,-250.0,0.00022206,2]
[394920241,1764120631924,-250.0,0.00023432,2]
[394920242,1764120631934,-338.4,0.00026676,2]
[394920243,1764120631943,-338.4,0.00033165,2]
[394920244,1764120631953,-385.976,0.00035441,2]
[394920245,1764120631962,-166.66,0.00037234,30]
[394920246,1764120631971,-166.66,0.00038018,30]
[394920247,1764120631980,-6012.54,0.00038181,2]
[394920248,1764120631990,-166.66,0.00038802,30]
[394920249,1764120631999,-250.0,0.00038985,2]
[394920250,1764120632009,-1730.69191714,0.00039,2]
[394920251,1764120632018,-166.66,0.00039585,30]
[394920252,1764120632027,-338.4,0.00039654,2]
[394920254,1764120632036,-163.84,0.0003979,2]
[394920256,1764120632045,-162.88386776,0.00039799,31]
[394920258,1764120632054,-11024.61203729,0.000398,2]
[394920260,1764120632065,-271.91129923,0.000398,2]
[394920262,1764120632076,-570.84048017,0.000398,2]
[394920264,1764120632087,-1326.4511873,0.000398,2]
[394920291,1764120633572,588.74358997,0.00042002,30]